Cogmind - Beta 17 --- EXPLORER MODE // 2026.08.17 @ 23:49:34 // AFD2019/Pay2Buy Player: Goose Result: Destroyed by D-53 Grenadier with Mini Grenade Launcher Performance ------------- Evolutions (0) 0 Regions Visited (2) 400 Robots Destroyed (6) 30 Value Destroyed (175) 175 Prototype IDs (2) 40 Alien Tech Used (0) 0 Bonus (0) 0 TOTAL SCORE: 645 Bonus ------- None Cogmind --------- Core Integrity 0/250 Matter 212/300 Energy 100/100 System Corruption 2% Temperature Cool (0) Movement Core (50) Location -10/Mines Parts ------- > --- POWER (1) -------- (None) > --- PROPULSION (2) --- (None) > --- UTILITY (3) ------ (None) > --- WEAPON (2) ------- (None) > --- INVENTORY (10) --- (None) Peak State ------------ > --- POWER ------------ (None) > --- PROPULSION ------- Flight Unit Flight Unit > --- UTILITY ---------- (None) > --- WEAPON ----------- Heavy Assault Rifle Heavy Assault Rifle > --- INVENTORY -------- Heavy Assault Rifle Heavy Assault Rifle [Rating: 6] Favorites ----------- Power None Propulsion Flight Unit Flight Unit Flight Unit Utility None Weapon Heavy Assault Rifle Ballistic Gun Heavy Assault Rifle Special Weapon Mining Laser Build | -11 -10 -10 ------- Run | Yrd Mat Min Slots Evolved 1 | . 1 . Power . | . . . Propulsion . | . . . Utility 1 | . 1 . Weapon . | . . . Parts Attached 1 | . . 1 Power . | . . . Engine . | . . . Core . | . . . Reactor . | . . . Propulsion . | . . . Treads . | . . . Leg . | . . . Wheel . | . . . Hover . | . . . Flight . | . . . Utility . | . . . Device . | . . . Storage . | . . . Processor . | . . . Hackware . | . . . Protection . | . . . Artifact . | . . . Weapon 1 | . . 1 Energy Gun . | . . . Energy Cannon . | . . . Ballistic Gun . | . . . Ballistic Cannon . | . . . Launcher . | . . . Special Weapon 1 | . . 1 Impact Weapon . | . . . Slashing Weapon . | . . . Piercing Weapon . | . . . Special Melee Weapon . | . . . Unidentified Prototypes . | . . . Parts Lost 6 | . . 6 Power . | . . . Propulsion 3 | . . 3 Utility . | . . . Weapon 3 | . . 3 Highest Loss Streak 4 | . . 4 To Critical Strikes . | . . . Average Backups . | . 2 . Power . | . . . Propulsion . | . . . Utility . | . . . Weapon . | . 2 . Tool/Special . | . . . Unused Backups 3 | . . 3 Power . | . . . Propulsion 1 | . . 1 Utility . | . . . Weapon 2 | . . 2 Tool/Special . | . . . Average Slot Usage (%) 40 | . 50 37 Flight 19 | . 25 18 Ballistic Gun 20 | . 25 18 Peak Build Rating 6 | . 6 6 Average Rating 4 | . 6 4 On Entrance 2 | . . 6 Avg Prop Armor Cover (%) . | . . . Naked Turns 25 | . . 25 Heaviest Build 6 | . 6 6 Greatest Support 8 | 3 8 8 Greatest Overweight (x) 1 | . . 1 Average Overweight (x) . | . . . Largest Inventory Capacity 10 | 10 10 10 Average Capacity 10 | 10 10 10 Most Carried 3 | . 2 3 Average Carried . | . 2 . Final Capacity 10 | 10 10 10 Final Carried 2 | . 2 . Class Distribution -------------------- 100% | Hacker-Mutant Dominant Class ---------------- Hacker-Mutant | -10/Materials Hacker-Mutant | -10/Mines Resources | -11 -10 -10 ----------- Run | Yrd Mat Min Matter Collected 142 | . 120 22 Remotely . | . . . Salvage Created 182 | . 120 62 Parts . | . . . Haulers Intercepted . | . . . Recyclers Shooed . | . . . Parts Field Recycled . | . . . Retrieved Matter . | . . . Parts Self-Destructed . | . . . Prevented . | . . . Parts Restored . | . . . Kills | -11 -10 -10 ------- Run | Yrd Mat Min Combat Hostiles Destroyed 6 | . 3 3 Guns 6 | . 3 3 Classes Destroyed 3 | . 1 2 Swarmer 2 | . . 2 Grunt 3 | . 3 . Demolisher 1 | . . 1 Best Kill Streak 2 | . 2 2 Combat Bots Only 2 | . 2 2 Max Kills in Single Turn 1 | . 1 1 Gunslinging . | . . . Exploded . | . . . Melee . | . . . Uniques/NPCs Destroyed . | . . . Combat | -11 -10 -10 -------- Run | Yrd Mat Min Hostile Shots Fired 29 | . 6 23 Missed 2 | . . 2 Hits 27 | . 6 21 Projectile 27 | . 6 21 AOE 20 | . . 20 Damage Taken 578 | . 41 537 Core 258 | . 6 252 Absorbed by Shields . | . . . Ignored by Resistances 340 | . 28 312 Core Remaining (%) 100 | 100 . . Volleys Fired 13 | . 5 8 Largest 2 | . 2 2 Hottest 46 | . 46 46 Shots Fired 24 | . 10 14 Gun 24 | . 10 14 Cannon . | . . . Launcher . | . . . Special . | . . . Kinetic 24 | . 10 14 Thermal . | . . . Explosive . | . . . Electromagnetic . | . . . Robot Hit Streak 19 | . 7 19 Robot Miss Streak . | . . . Penetration Max . | . . . Secondary Targets . | . . . Shots Hit Robots 19 | . 7 12 Core Hits 8 | . 3 5 Critical Kills . | . . . Critical Parts Destroyed 1 | . . 1 Critical Strikes 1 | . . 1 Destroy 1 | . . 1 Melee Attacks . | . . . Impact . | . . . Slashing . | . . . Piercing . | . . . Sneak Attacks . | . . . Combat Hostiles . | . . . Follow-up Attacks . | . . . Damage Inflicted 337 | . 111 226 Guns 302 | . 111 191 Cannons . | . . . Explosions . | . . . Melee . | . . . Ramming 35 | . . 35 Kinetic 302 | . 111 191 Thermal . | . . . Explosive . | . . . Electromagnetic . | . . . Impact . | . . . Slashing . | . . . Piercing . | . . . Highest Corruption 2 | . 1 2 Average Corruption 1 | . 1 1 Corruption Purged . | . . . Corruption Blocked . | . . . Effects 1 | . . 1 Matter Fused 1 | . . 1 Overload Shots . | . . . Overflow Damage . | . . . Projectiles . | . . . Explosions . | . . . Melee . | . . . Knockbacks . | . . . Impact . | . . . Kinetic . | . . . Secondary . | . . . Self-Inflicted Damage 16 | . . 16 Shots . | . . . Rammed 8 | . . 8 Targets Rammed 8 | . . 8 Kicked . | . . . Crushed . | . . . Highest Temperature 2 | . 2 . Average Temperature 2 | . 2 . Received Heat Transfer 36 | . 36 . Siege Activations . | . . . Martial Activations . | . . . Shielding Activations . | . . . Robots Disrupted . | . . . Combat Hostiles . | . . . Robots Corrupted . | . . . Combat Hostiles . | . . . Parts Fried . | . . . Impact Corruptions . | . . . Robots Melted . | . . . Combat Hostiles . | . . . Parts Melted . | . . . Heat Transferred . | . . . Parts Sabotaged . | . . . Parts Stolen . | . . . Parts Stripped . | . . . Power Chain Reactions . | . . . Alert | -11 -10 -10 ------- Run | Yrd Mat Min Maximum Alert Level . | . . . Low Security (%) 100 | 100 100 100 Level 1 . | . . . Level 2 . | . . . Level 3 . | . . . Level 4 . | . . . Level 5 . | . . . High Security . | . . . Max Security . | . . . Peak Influence 66 | . 66 50 Initial 18 | . . 18 Average 20 | . 47 12 Influence Increases 186 | . 96 90 Destroy 0b10 Robot/C 120 | . 60 60 Destroy 0b10 Robot/NC 5 | . . 5 Destroy Leader 20 | . 10 10 Successful Hack 26 | . 26 . Lose Combat Pursuer 15 | . . 15 Influence Decreases 186 | . 30 156 Entered New Map 48 | . . 48 Time Decay 93 | . 30 63 Lost Part 30 | . . 30 Lost Ally 15 | . . 15 Squads Dispatched 1 | . 1 . Investigation 1 | . 1 . Extermination . | . . . Reinforcement . | . . . Assault . | . . . Garrison . | . . . Intercept . | . . . Searches Triggered . | . . . Construction Impeded . | . . . Haulers Reinforced . | . . . Active Scanning Responses . | . . . Cargo Convoy Interrupts . | . . . Stealth | -11 -10 -10 --------- Run | Yrd Mat Min Distress Signals . | . . . Communications Jammed . | . . . Distress Signals . | . . . Times Spotted 8 | . 3 5 Peak Tracking Total 3 | . 3 2 Tactical Retreats 1 | . . 1 Traps | -11 -10 -10 ------- Run | Yrd Mat Min Traps Triggered . | . . . Indirectly . | . . . Trap Hack Attempts . | . . . Triggered . | . . . Disarmed . | . . . Reprogrammed . | . . . Reused . | . . . Traps Extracted . | . . . Installed . | . . . Triggered . | . . . Machines | -11 -10 -10 ---------- Run | Yrd Mat Min Machines Disabled . | . . . Max in Single Turn . | . . . Machines Repaired . | . . . Machines Dismantled . | . . . Machines Sabotaged . | . . . Overloaded Fab Kills . | . . . Hacking | -11 -10 -10 --------- Run | Yrd Mat Min Machines Accessed 2 | . 2 . Terminals 2 | . 2 . Fabricators . | . . . Repair Stations . | . . . Recycling Units . | . . . Scanalyzers . | . . . Garrison Access . | . . . Total Hacks 6 | . 6 . Successful 5 | . 5 . Failed 1 | . 1 . Catastrophic . | . . . Database Lockouts . | . . . Manual 2 | . 2 . Terminals 6 | . 6 . Fabricators . | . . . Repair Stations . | . . . Recycling Units . | . . . Scanalyzers . | . . . Garrison Access . | . . . Terminal Hacks 4 | . 4 . Prototype ID Bank 1 | . 1 . Alert Level 1 | . 1 . Registered Components 1 | . 1 . Zone Layout 1 | . 1 . Fabricator Hacks . | . . . Repair Station Hacks . | . . . Recycling Unit Hacks . | . . . Scanalyzer . | . . . Garrison Access Hacks . | . . . Unauthorized Hacks 1 | . 1 . Terminals 1 | . 1 . Track 1 | . 1 . Fabricators . | . . . Repair Stations . | . . . Recycling Units . | . . . Scanalyzers . | . . . Garrison Access . | . . . Data Cores Recovered . | . . . Used . | . . . Hacking Detections 2 | . 2 . Full Trace Events 2 | . 2 . Feedback Events 1 | . 1 . Corruption 1 | . 1 . Feedback Blocked . | . . . Robot Schematics Acquired . | . . . Robots Built . | . . . Authchips . | . . . Time . | . . . Total Robot Build Rating . | . . . Part Schematics Acquired . | . . . Parts Built . | . . . Authchips . | . . . Time . | . . . Total Part Build Rating . | . . . Part Studies Acquired . | . . . Parts Repaired . | . . . Time . | . . . Parts Recycled . | . . . Recycled Matter . | . . . Retrieved Matter . | . . . Retrieved Components . | . . . Parts Scanalyzed . | . . . Part Schematics Acquired . | . . . Parts Damaged . | . . . Bothacking | -11 -10 -10 ------------ Run | Yrd Mat Min Used RIF Installer . | . . . Robots Hacked . | . . . Non-combat . | . . . Combat . | . . . Robot Hacks Applied . | . . . Relay Couplers Released . | . . . Fabnet Peak Effective % . | . . . Robots Rewired . | . . . Allies Hacked . | . . . Hacks Repelled . | . . . Allies | -11 -10 -10 -------- Run | Yrd Mat Min Total Allies 1 | . . 1 Largest Group 1 | . . 1 Highest-Rated Group 31 | . . 31 Highest-Rated Ally 31 | . . 31 Total Orders . | . . . Ally Attacks 4 | . . 4 Total Damage 64 | . . 64 Kills 1 | . . 1 Allies Corrupted . | . . . Allies Melted . | . . . Intel | -11 -10 -10 ------- Run | Yrd Mat Min Active Infowar (turns) . | . . . Robot Analysis Total . | . . . Derelict Logs Recovered . | . . . Drone Launches . | . . . Drone Recoveries . | . . . Exploration | -11 -10 -10 ------------- Run | Yrd Mat Min Turns Passed 233 | 10 56 167 Spaces Moved 432 | 19 72 341 Core 68 | 19 . 49 Treads . | . . . Legs . | . . . Wheels . | . . . Hover . | . . . Flight 364 | . 72 292 Fastest Speed 37 | 50 37 37 Average Speed 39 | 50 37 39 Slowest Speed 120 | 50 37 120 Overloaded Moves . | . . . Propulsion Burnouts . | . . . Robots Hopped 1 | . . 1 Potential Cave-ins . | . . . Cave-ins Triggered . | . . . Exploration Rate (%) 22 | 4 8 56 Regions Visited 2 Branch Regions 1 Pre-discovered Areas . | . . . Known Exits Taken 2 | 1 1 . Unknown Exits Taken . | . . . Scrap Searched . | . . . Spaces Dug . | . . . Terrain Destroyed . | . . . Melee . | . . . Projectile . | . . . AOE . | . . . Terrain Rammed . | . . . Walls Destroyed . | . . . Machines Disabled . | . . . Actions | -11 -10 -10 --------- Run | Yrd Mat Min Total 469 | 18 90 361 Wait 14 | . 14 . Move 428 | 18 71 339 Hop 1 | . . 1 Pick Up 1 | . . 1 Fast Attach . | . . . Attach 1 | . . 1 Detach . | . . . Swap . | . . . Drop 3 | . . 3 Fire 13 | . 5 8 Melee . | . . . Ram 8 | . . 8 Kick . | . . . Crush . | . . . Escape Stasis . | . . . Rewire . | . . . Trap . | . . . Miscellaneous . | . . . Route ------- -11/Scrapyard -10/Materials -10/Mines History --------- Turn | Location | Event 5 | -11/Scrapyard | Identified exit to Materials 5 | -11/Scrapyard | Discovered exit to Materials (range 12) 11 | -11/Scrapyard | Entered Materials 11 | -10/Materials | Evolved 1 slot: Utility x1 64 | -10/Materials | Identified exit to Mines 64 | -10/Materials | Discovered exit to Mines (range 5) 67 | -10/Materials | Entered Mines 153 | -10/Mines | Received a Mining Laser from a helpful Derelict 171 | -10/Mines | Assembled infested the area 176 | -10/Mines | Assisted by a Guerilla fighting off Assembled 190 | -10/Mines | Core integrity fell below 50% 199 | -10/Mines | Core integrity fell below 20% 224 | -10/Mines | Lost 4 parts (2n2w) 234 | -10/Mines | Destroyed by D-53 Grenadier with Mini Grenade Launcher Last Messages --------------- 00193_ U-05 Engineer lays Concrete. 00195_ Slammed into T-07 Excavator. 00195_ U-05 Engineer builds a Wall. 00196_ The unstable cave ceiling collapses. 00196_ T-07 Excavator destroyed. 00198_ The unstable cave ceiling collapses. 00199_ U-05 Engineer builds a Wall. [DISCOUNT: For the next 87 turns enjoy 50% off any Treads!] 00217_ System corrupted: Matter fused (-5). [Purchased: Flight Unit] 00228_ Slammed into D-53 Grenadier. 00228_ Destabilizing: System interference. 00228_ Mining Laser temporarily disabled. 00229_ Flight Unit destroyed. 00229_ Slammed into D-53 Grenadier. 00232_ Destabilizing: System corrupted (+1). 00233_ Slammed into D-53 Grenadier. 00234_ Mining Laser broken. 00234_ Destabilizing: Short circuit. 00234_ Broken Mining Laser destroyed. Map ----- +----------------------------------------------------+ | ??????????????????????????????????????????????## " | | ??????????????????????????????????????????????## | | ??????????????????????????????????????????????# | | ??????????????????????????????#####???????????# | | ??????????????????????????????# # ############# | | ????????????????????????????### | | ?????????????????## ######### | | ?????????????? #### | | ??????????????????# ##?## | | ?????????????????????####### ##?## | | ???????????????????????????## ###??# | | ????????????????????????????# # # #??# | | ????????????????????????????# # #??# | | ????????????????????????????# ## # #??## | | ????????????????????????????# ## #??## | | ?????????????????????????#### ### # ##?## | | ?????????????????????????# #?# % ##??# | | ?????????????????????????# ####?## %####???# | | ?????????????????????##### #?????# #??????# | | ???????????????????### ## ##????# #??????# | | ???????????????????# #????# #??????# # | | ??????????????????## #???? # ?????## ### | | ??????????????????# ###??? % ???????###??? | | ??????????????????## #??? ?????????????? | | ?????????????????## ##### ?????????????? | | ?????????????????# @## ??????????????? | | ?????????????????# d # ? ??????????????? | | ?????????????????## # #???? ??????????????? | | ??????????????????# ##??????????????????? | | ??????????????????## ##?????????????????? | | ???????????????????# ##????????????????? | | ???????????????????## ##???????????????? | | ????????????????????## ##??????????????? | | ?????????????????????#### #??????????????? | | ????????????????????????## #??????????????? | | ?????????????????????????## ##??????????????? | | ??????????????????????????########???????????????? | | ?????????????????????????????????????????????????? | | ?????????????????????????????????????????????????? | | | | | | | | | | | | | | | | | | | | | | | +----------------------------------------------------+ Best States ------------- Heat Dissipation 25 Energy Generation 5 Energy Capacity 100 Matter Stores 200 Matter Capacity 300 Sight Range 16 Terrain Scan Density 10 Resistance: KI 35 Resistance: TH 35 Resistance: EX 35 Resistance: EM 35 Resistance: I 35 Resistance: S 35 Resistance: P 35 Evasion (%) 62 Offensive Hacking 20 Item Schematics ----------------- None Robot Schematics ------------------ None Fabricated ------------ Nothing Repaired ---------- Nothing Studied --------- None Alien Tech Used ----------------- None Achievements -------------- None Challenges ------------ None Cogshop Purchases (8) ----------------------- Hvy. Assault Rifle (699) Hvy. Assault Rifle (699) Hvy. Assault Rifle (699) Hvy. Assault Rifle (699) Flight Unit (899) Flight Unit (899) Spk. Treads (874) Flight Unit (1021) Game ------ Seed DispersionCoilDesublimator Manual? 0 Play Time 00:09:10 Cumulative 525.1 hours Start 2026.08.17 @ 23:43:29 End 2026.08.17 @ 23:49:34 Sessions 1 Manual Loads 0 Difficulty Explorer Special Mode AFD2019/Pay2Buy Game No. 31 Rogue 5 Adventurer 1 Explorer 25 Win Type - Total 5 Types 5/0/0/0/0/0/0/0/0/0 Lore% 52 Gallery% 53 Achievement% 49 Wizard Run 0 Options --------- Layout 0 ASCII 0 Keyboard 0 Movement Arrows Keybinds 0 Fullscreen 2 Font 18/X11 Map View 38x25 Zoom Use 75% Tactical HUD 1 Map Filters NONE Filters NONE Steam 1 RUN: 6de347ee-9728-4b22-86ae-6a6ce76cdb02